bitfinex-derivatives/quotes_SOLF0:USTF0_20250929
["timestamp","ask_amount","ask_price","bid_price","bid_amount"]
[1759175719186,7.62,212.71,212.62,7.72]
[1759175719786,7.62,212.71,212.62,11.12311067]
[1759175720381,7.62,212.71,212.64,4.2296]
[1759175720587,7.62,212.71,212.62,7.72]
[1759175721685,7.62,212.69,212.63,4.2297]
[1759175722189,7.62,212.69,212.61,4.2302]
[1759175722388,11.8489,212.69,212.61,4.2302]
[1759175722692,8.62154027,212.73,212.5,3.9038583]
[1759175722693,76.82581067,212.62,212.5,3.9038583]
[1759175722897,76.82581067,212.62,212.47,9.44501605]
[1759175722898,7.62,212.57,212.47,4.2329]
[1759175723895,3.2937255,212.56,212.47,4.2329]
[1759175724093,3.2937255,212.55,212.47,4.2329]
[1759175724288,3.2937255,212.54,212.47,4.2329]
[1759175724493,67.44,212.56,212.47,4.2329]
[1759175724688,3.29149746,212.55,212.47,4.2329]
[1759175724890,3.29149746,212.55,212.45,7.85]
[1759175724891,3.29149746,212.54,212.45,7.85]
[1759175725089,3.29149746,212.53,212.45,7.85]
[1759175725284,3.29149746,212.52,212.45,7.85]
[1759175725490,3.29149746,212.55,212.45,73.7036]
[1759175725789,63.36,212.57,212.45,73.7036]
[1759175725995,3.28957993,212.56,212.45,73.7036]
[1759175726194,3.28957993,212.55,212.49,4.2327]
[1759175726496,3.28957993,212.56,212.48,7.85]
[1759175727193,3.28957993,212.56,212.46,65.8513]
[1759175727194,3.28957993,212.56,212.51,12.0822]
[1759175727500,7.62,212.57,212.52,7.85]
[1759175728193,129.67311067,212.61,212.53,4.2318]
[1759175728383,3.28707112,212.6,212.53,4.2318]
[1759175728583,3.28707112,212.59,212.53,4.2318]
[1759175728795,3.28707112,212.58,212.53,12.0818]
[1759175729096,3.28707112,212.6,212.53,12.0818]
[1759175729396,3.28707112,212.59,212.53,12.0818]
[1759175729597,3.28707112,212.6,212.53,12.0818]
[1759175729789,3.28707112,212.59,212.53,12.0818]
[1759175729989,3.28707112,212.6,212.53,12.0818]
[1759175730289,3.28707112,212.59,212.53,12.0818]
[1759175730490,11.31311067,212.61,212.53,12.0818]
[1759175730491,3.28707112,212.6,212.53,12.0818]
[1759175730698,3.28707112,212.59,212.55,4.2314]
[1759175730995,3.28707112,212.61,212.55,4.2314]
[1759175731203,11.19707112,212.6,212.55,4.2314]
[1759175731393,3.28707112,212.59,212.55,4.2314]
[1759175731696,3.28707112,212.61,212.55,4.2314]
[1759175731900,11.19707112,212.6,212.55,4.2314]
[1759175732199,118.2,212.62,212.56,4.2311]
[1759175732498,7.91,212.64,212.55,7.85]
[1759175732700,3.28596018,212.63,212.55,7.85]
[1759175732999,3.28596018,212.62,212.59,7.85]
[1759175733199,3.28596018,212.63,212.59,7.85]
[1759175733400,3.28596018,212.62,212.59,7.85]
[1759175733700,3.28596018,212.63,212.6,4.2305]
[1759175734001,3.28596018,212.63,212.6,12.0805]
[1759175734594,3.28596018,212.63,212.6,4.2305]
[1759175734798,7.91,212.64,212.58,12.0809]
[1759175735100,11.19615058,212.63,212.58,12.0809]
[1759175735299,3.28615058,212.62,212.58,12.0809]
[1759175736301,11.19615058,212.62,212.55,4.2313]
[1759175736502,3.28667115,212.61,212.55,4.2313]
[1759175736803,7.91,212.59,212.55,4.2313]
[1759175737195,7.91,212.59,212.55,12.0813]
[1759175737394,118.12,212.62,212.57,4.2311]
[1759175737700,11.19697182,212.61,212.57,4.2311]
[1759175738000,3.28697182,212.6,212.57,4.2311]
[1759175738194,3.28697182,212.59,212.57,4.2311]
[1759175738394,3.28697182,212.61,212.57,4.2311]
[1759175738704,11.19697182,212.6,212.55,12.0814]
[1759175738899,3.28697182,212.59,212.55,12.0814]
[1759175740596,3.28697182,212.59,212.56,4.2311]
[1759175741895,11.19697182,212.59,212.56,4.2311]
[1759175742190,7.91,212.59,212.56,4.2311]
[1759175742392,118.04,212.62,212.56,4.2311]
[1759175742597,7.91,212.6,212.56,4.2311]
[1759175742793,3.28744493,212.59,212.56,4.2311]
[1759175742998,3.28744493,212.59,212.56,12.0811]
[1759175743195,3.28744493,212.59,212.57,4.2309]
[1759175743397,7.91,212.6,212.57,4.2309]
[1759175744093,7.91,212.64,212.57,4.2309]
[1759175744290,121.14769566,212.63,212.57,4.2309]
[1759175744491,7.91,212.61,212.57,4.2309]
[1759175744695,3.28769566,212.6,212.57,4.2309]
[1759175745096,3.28769566,212.59,212.57,4.2309]
[1759175745304,3.40311067,212.65,212.57,4.2309]
[1759175745305,11.19769566,212.6,212.57,4.2309]
[1759175745604,3.28809371,212.59,212.57,4.2309]
[1759175748502,3.28809371,212.59,212.57,12.0809]
[1759175748698,3.28809371,212.6,212.57,12.0809]
[1759175748893,2.18042369,212.63,212.55,65.8232]
[1759175749099,3.28804665,212.62,212.56,7.85]
[1759175749305,3.28804665,212.62,212.58,7.85]
[1759175749502,3.28804665,212.64,212.62,4.23]
[1759175749804,3.28804665,212.63,212.62,4.23]
[1759175750106,3.28804665,212.64,212.62,12.08]
[1759175750306,3.28804665,212.63,212.62,12.08]
[1759175750505,3.28804665,212.64,212.62,12.08]
[1759175750808,3.28804665,212.63,212.62,4.23]
[1759175750993,3.28804665,212.66,212.62,4.23]
[1759175751197,11.19804665,212.65,212.62,4.23]
[1759175751397,3.28804665,212.64,212.62,4.23]
[1759175751601,3.28804665,212.63,212.62,4.23]
[1759175754708,3.28804665,212.64,212.62,4.23]
[1759175754907,3.28804665,212.63,212.62,4.23]
[1759175755108,3.28804665,212.64,212.62,4.23]
[1759175755304,3.28804665,212.63,212.62,4.23]
[1759175755504,3.28804665,212.64,212.62,4.23]
[1759175755699,3.28804665,212.63,212.62,4.23]
[1759175755904,3.28804665,212.64,212.62,4.23]
[1759175756105,3.28804665,212.63,212.62,4.23]
[1759175756306,3.28804665,212.64,212.62,4.23]
[1759175756506,3.28804665,212.63,212.62,4.23]
[1759175756705,3.28804665,212.64,212.62,4.23]
[1759175756903,3.28804665,212.63,212.62,4.23]
[1759175757104,3.28804665,212.64,212.62,4.23]
[1759175757300,3.28804665,212.63,212.62,4.23]
[1759175757502,7.91,212.65,212.62,4.23]
[1759175757503,3.28804665,212.64,212.62,4.23]
[1759175757705,3.28804665,212.63,212.62,4.23]
[1759175757909,3.28804665,212.64,212.62,4.23]
[1759175758109,3.28804665,212.63,212.62,4.23]
[1759175758310,3.28804665,212.64,212.62,4.23]
[1759175758510,3.28804665,212.63,212.62,4.23]
[1759175758811,3.28804665,212.64,212.62,4.23]
[1759175759112,3.28804665,212.63,212.62,4.23]
[1759175760314,3.28804665,212.63,212.6,4.2304]
[1759175760511,7.91,212.65,212.6,11.5104]
[1759175760714,3.30984653,212.64,212.6,7.28]
[1759175760912,7.94,212.62,212.5,65.8375]
[1759175761111,7.94,212.62,212.48,65.8439]
[1759175761112,7.94,212.6,212.51,7.28]
[1759175761310,3.30984653,212.59,212.51,7.28]
[1759175761512,7.94,212.57,212.51,7.28]
[1759175761815,11.24984653,212.56,212.51,7.28]
[1759175762013,3.30984653,212.55,212.48,2.18042369]
[1759175762213,7.94,212.57,212.48,9.46042369]
[1759175762410,7.94,212.55,212.48,9.46042369]
[1759175762610,30.48,212.58,212.51,7.28]
[1759175762816,3.31184724,212.57,212.51,7.28]
[1759175763118,3.31184724,212.56,212.54,11.5115]
[1759175763319,56.56,212.59,212.54,11.5115]
[1759175763516,11.25159574,212.58,212.54,11.5115]
[1759175763719,3.31159574,212.57,212.54,11.5115]
[1759175764020,3.31159574,212.56,212.54,11.5115]
[1759175764320,7.94,212.58,212.54,11.5115]
[1759175764516,3.31187278,212.57,212.54,11.5115]
[1759175764820,7.94,212.62,212.55,11.5113]
[1759175765015,3.31143548,212.61,212.55,7.28]
[1759175765217,3.31143548,212.6,212.54,9.46042369]
[1759175765416,3.31143548,212.59,212.54,2.18042369]
[1759175765620,7.94,212.62,212.55,7.28]
[1759175765821,3.3118894,212.61,212.55,7.28]
[1759175766019,7.94,212.59,212.54,2.18042369]
[1759175766221,11.2518894,212.58,212.54,9.46042369]
[1759175766424,7.94,212.61,212.55,11.5113]
[1759175766617,11.25233049,212.6,212.55,11.5113]
[1759175766818,11.25233049,212.59,212.55,11.5113]
[1759175767021,3.31233049,212.58,212.55,11.5113]
[1759175767318,7.94,212.59,212.55,11.5113]
[1759175767517,3.31281472,212.58,212.55,11.5113]
[1759175767712,7.94,212.59,212.55,7.28]
[1759175767918,7.94,212.57,212.53,11.5118]
[1759175768514,11.25366058,212.56,212.53,11.5118]
[1759175768721,7.94,212.56,212.53,11.5118]
[1759175769122,7.94,212.56,212.53,7.28]
[1759175769328,7.94,212.6,212.53,7.28]
[1759175769528,3.31440376,212.59,212.53,7.28]
[1759175769726,3.31440376,212.58,212.52,9.46042369]
[1759175769929,3.31440376,212.57,212.53,7.28]
[1759175770124,7.94,212.6,212.53,7.28]
[1759175770326,3.31531384,212.59,212.53,7.28]
[1759175770526,3.31531384,212.58,212.52,6.41242369]
[1759175770731,3.31531384,212.57,212.53,7.28]
[1759175770929,3.31531384,212.56,212.53,7.28]
[1759175771129,7.94,212.6,212.53,7.28]
[1759175771329,3.31564641,212.59,212.51,2.18042369]
[1759175771532,11.25564641,212.58,212.51,2.18042369]
[1759175771724,3.31564641,212.57,212.51,2.18042369]
[1759175771922,11.25564641,212.56,212.51,9.46042369]
[1759175772133,3.31564641,212.55,212.51,2.18042369]
[1759175772326,7.94,212.59,212.51,9.46042369]
[1759175772527,3.31601304,212.58,212.51,9.46042369]
[1759175772723,3.31601304,212.57,212.51,9.46042369]
[1759175772928,11.25601304,212.56,212.51,2.18042369]
[1759175773129,3.31601304,212.55,212.51,2.18042369]
[1759175773329,7.94,212.56,212.52,7.28]
[1759175773526,3.31601172,212.55,212.52,7.28]
[1759175773730,7.94,212.56,212.52,7.28]
[1759175773931,3.31601122,212.55,212.52,7.28]
[1759175774228,7.94,212.6,212.53,2.18042369]
[1759175774531,3.31589744,212.59,212.53,2.18042369]
[1759175774740,3.31589744,212.58,212.54,7.41]
[1759175775037,3.31589744,212.57,212.54,7.41]
[1759175775333,3.31589744,212.56,212.54,7.41]
[1759175775526,7.94,212.6,212.54,7.41]
[1759175775726,11.15574824,212.59,212.54,7.41]
[1759175776029,3.31574824,212.58,212.54,7.41]
[1759175776226,3.31574824,212.57,212.54,7.41]
[1759175776536,125.06,212.63,212.54,7.41]
[1759175776738,3.31553129,212.62,212.54,7.41]
[1759175776930,3.31553129,212.61,212.54,9.59042369]
[1759175777129,125.06,212.63,212.54,9.59042369]
[1759175777130,3.31553129,212.6,212.54,9.59042369]
[1759175777331,3.31553129,212.59,212.55,7.41]
[1759175777533,3.31553129,212.58,212.55,11.6413]
[1759175777733,3.31553129,212.57,212.55,11.6413]
[1759175778031,125.06,212.63,212.55,11.6413]
[1759175778238,3.31553322,212.62,212.56,2.18042369]
[1759175778436,3.31553322,212.61,212.58,9.59042369]
[1759175778639,3.31553322,212.6,212.58,9.59042369]
[1759175778933,11.15553322,212.59,212.56,2.18042369]
[1759175779233,7.84,212.59,212.56,7.41]
[1759175779538,7.84,212.64,212.56,7.41]
[1759175779733,3.31559446,212.63,212.56,7.41]
[1759175780039,3.31559446,212.62,212.56,7.41]
[1759175780238,11.15559446,212.61,212.57,7.41]
[1759175780437,3.31559446,212.6,212.57,7.41]
[1759175780637,3.31559446,212.59,212.56,2.18042369]
[1759175780937,63.4584296,212.66,212.56,9.59042369]
[1759175780938,7.84,212.65,212.56,9.59042369]
[1759175781133,3.31563814,212.64,212.56,9.59042369]
[1759175781333,3.31563814,212.63,212.56,9.59042369]
[1759175781639,11.15563814,212.62,212.57,11.6409]
[1759175781937,3.31563814,212.61,212.57,11.6409]
[1759175782129,3.31563814,212.6,212.57,7.41]
[1759175782328,3.31563814,212.59,212.56,9.59042369]
[1759175782535,3.31563814,212.58,212.57,7.41]
[1759175782737,7.84,212.6,212.57,7.41]
[1759175783029,3.31697369,212.59,212.57,7.41]
[1759175783334,7.84,212.63,212.57,7.41]
[1759175783537,7.84,212.61,212.57,7.41]
[1759175783733,3.31698156,212.6,212.57,7.41]
[1759175784028,3.31698156,212.59,212.57,7.41]
[1759175784233,7.84,212.61,212.57,7.41]
[1759175784429,3.31699479,212.6,212.57,7.41]
[1759175784634,3.31699479,212.59,212.57,7.41]
[1759175784839,7.84,212.61,212.57,7.41]
[1759175785042,3.31699479,212.6,212.57,7.41]
[1759175785236,3.31699479,212.59,212.57,7.41]
[1759175785540,3.31699479,212.58,212.57,7.41]
[1759175786041,7.98,212.63,212.57,7.41]
[1759175786230,7.98,212.61,212.57,7.41]
[1759175786541,11.29700949,212.6,212.57,7.41]
[1759175786741,7.98,212.58,212.54,7.81]
[1759175786942,7.98,212.56,212.51,2.18042369]
[1759175787143,11.29700949,212.55,212.51,7.81]
[1759175787439,7.98,212.55,212.51,7.81]
[1759175788045,2.18042369,212.61,212.51,7.81]
[1759175788237,11.29744276,212.6,212.51,7.81]
[1759175788436,3.31744276,212.59,212.51,7.81]
[1759175788633,3.31744276,212.58,212.51,12.0422]
[1759175788844,3.31744276,212.57,212.51,12.0422]
[1759175789041,7.98,212.55,212.51,4.2322]
[1759175789241,6.41122369,212.59,212.51,12.0422]
[1759175789441,11.29703452,212.58,212.51,7.81]
[1759175789635,7.98,212.56,212.49,4.2326]
[1759175789837,3.31703452,212.57,212.46,125.06865635]
[1759175789838,3.31703452,212.55,212.5,2.18042369]
[1759175790054,11.29703452,212.54,212.5,9.99042369]
[1759175790342,7.98,212.54,212.5,9.99042369]
[1759175790545,7.98,212.58,212.5,2.18042369]
[1759175790745,3.3167983,212.57,212.5,2.18042369]
[1759175790944,3.3167983,212.56,212.5,6.41272369]
[1759175791137,3.3167983,212.55,212.51,7.81]
[1759175791336,7.98,212.58,212.5,9.99042369]
[1759175791541,3.31645776,212.57,212.5,9.99042369]
[1759175791748,3.31645776,212.56,212.55,7.81]
[1759175793052,11.29530053,212.65,212.6,12.0403]
[1759175793251,3.31530053,212.64,212.6,12.0403]
[1759175793447,3.31530053,212.63,212.6,12.0403]
[1759175793750,3.31530053,212.62,212.6,12.0403]
[1759175793951,3.31530053,212.61,212.6,12.0403]
[1759175795850,3.31530053,212.61,212.59,2.18042369]
[1759175796042,7.98,212.66,212.6,7.81]
[1759175796243,3.31510308,212.65,212.59,2.18042369]
[1759175796445,3.31510308,212.64,212.59,2.18042369]
[1759175796643,3.31510308,212.63,212.6,7.81]
[1759175796849,3.31510308,212.62,212.59,2.18042369]
[1759175797049,3.31510308,212.61,212.59,9.99042369]
[1759175797350,7.98,212.66,212.59,9.99042369]
[1759175797556,3.31510833,212.65,212.59,9.99042369]
[1759175797848,11.29510833,212.64,212.59,9.99042369]
[1759175798055,3.31510833,212.63,212.59,9.99042369]
[1759175798255,3.31510833,212.62,212.59,9.99042369]
[1759175798555,7.98,212.64,212.59,9.99042369]
[1759175798856,3.31496025,212.63,212.62,7.81]
[1759175799650,7.98,212.68,212.62,12.0399]
[1759175799954,3.31431388,212.67,212.63,9.99042369]
[1759175800154,3.31431388,212.66,212.63,9.99042369]
[1759175800356,3.31431388,212.65,212.63,9.99042369]
[1759175800557,3.31431388,212.64,212.63,9.99042369]
[1759175800855,3.31431388,212.64,212.62,6.41032369]
[1759175801060,7.98,212.68,212.62,14.22032369]
[1759175801358,11.2940726,212.67,212.62,14.22032369]
[1759175801558,3.3140726,212.66,212.62,14.22032369]
[1759175801858,3.3140726,212.65,212.62,14.22032369]
[1759175802056,3.3140726,212.64,212.62,14.22032369]
[1759175802257,7.98,212.67,212.62,14.22032369]
[1759175802462,3.31356036,212.66,212.62,9.99042369]
[1759175802651,3.31356036,212.65,212.62,9.99042369]
[1759175802850,3.31356036,212.64,212.62,9.99042369]
[1759175803148,7.98,212.69,212.62,9.99042369]
[1759175803354,3.31331272,212.68,212.62,9.99042369]
[1759175803657,11.29331272,212.67,212.62,9.99042369]
[1759175803856,11.29331272,212.66,212.62,9.99042369]
[1759175804055,3.31331272,212.65,212.62,9.99042369]
[1759175804352,11.29331272,212.64,212.6,6.41082369]
[1759175804557,3.31331272,212.63,212.61,7.81]
[1759175804757,7.98,212.67,212.6,6.41082369]
[1759175805055,3.31316519,212.66,212.6,6.41082369]
[1759175805258,11.29316519,212.65,212.6,14.22082369]
[1759175805457,3.31316519,212.64,212.6,14.22082369]
[1759175805660,3.31316519,212.63,212.6,9.99042369]
[1759175805861,3.31308894,212.62,212.6,9.99042369]
[1759175806154,7.98,212.67,212.6,9.99042369]
[1759175806355,3.31306111,212.66,212.6,9.99042369]
[1759175806555,11.29306111,212.65,212.6,9.99042369]
[1759175806754,3.31306111,212.64,212.6,9.99042369]
[1759175806963,3.31306111,212.63,212.6,9.99042369]
[1759175807159,3.31306111,212.62,212.6,6.41072369]
[1759175807458,7.98,212.64,212.6,6.41072369]
[1759175807459,7.98,212.64,212.61,7.81]
[1759175807659,3.3131737,212.63,212.61,7.81]
[1759175807859,3.3131737,212.62,212.61,7.81]
[1759175808055,3.3131737,212.66,212.62,7.81]
[1759175808258,3.3131737,212.65,212.62,2.18042369]
[1759175808462,3.3131737,212.64,212.63,7.81]
[1759175810162,7.98,212.7,212.63,7.81]
[1759175810163,3.3131737,212.69,212.63,7.81]
[1759175810363,11.2931737,212.68,212.63,12.0397]
[1759175810665,75.0,212.73,212.63,3.40360815]
[1759175810666,3.3131737,212.67,212.63,3.40360815]
[1759175810857,7.98,212.73,212.64,7.81]
[1759175811058,3.31173724,212.72,212.66,4.2291]
[1759175811259,7.98,212.7,212.66,4.2291]
[1759175811459,3.31173724,212.69,212.66,4.2291]
[1759175811661,3.31173724,212.68,212.66,4.2291]
[1759175811866,7.98,212.7,212.66,4.2291]
[1759175812063,3.30328385,212.69,212.66,4.2291]
[1759175812365,4.2278,212.74,212.66,4.2291]
[1759175812366,3.30328385,212.68,212.67,7.81]
[1759175813163,3.30328385,212.68,212.65,7.81]
[1759175813467,7.98,212.71,212.65,7.81]
[1759175813666,11.28209638,212.7,212.65,7.81]
[1759175813855,3.30209638,212.69,212.65,4.2294]
[1759175814058,3.30209638,212.68,212.65,4.2294]
[1759175814256,3.30175564,212.69,212.63,7.67]
[1759175814565,7.53,212.73,212.63,7.67]
[1759175814760,3.30152748,212.72,212.63,7.67]
[1759175814960,3.30152748,212.71,212.63,7.67]
[1759175815265,10.83152748,212.7,212.66,7.67]
[1759175815465,3.30152748,212.69,212.66,7.67]
[1759175815767,3.30152748,212.68,212.66,7.67]
[1759175815965,3.30152748,212.69,212.66,7.67]
[1759175816163,3.30152748,212.68,212.66,7.67]
[1759175816469,3.30152748,212.69,212.66,7.67]
[1759175816666,3.30152748,212.68,212.63,11.8998]
[1759175816865,4.2284,212.71,212.63,11.8998]
[1759175816866,10.83152748,212.67,212.63,11.8998]
[1759175817168,7.53,212.73,212.64,4.2295]
[1759175817364,3.30106998,212.72,212.64,4.2295]
[1759175817565,3.30106998,212.71,212.64,4.2295]
[1759175817870,4.2279,212.74,212.62,3.40360815]
[1759175817871,3.30106998,212.7,212.66,7.67]
[1759175818072,3.30106998,212.69,212.66,7.67]
[1759175818263,3.30106998,212.68,212.66,7.67]
[1759175818565,3.30106998,212.67,212.66,7.67]
[1759175818763,3.30106998,212.73,212.66,11.8991]
[1759175819061,3.30106998,212.72,212.66,11.8991]
[1759175819266,3.30106998,212.71,212.66,4.2291]
[1759175819464,3.30106998,212.7,212.66,4.2291]
[1759175819659,3.30106998,212.69,212.68,11.8989]
[1759175820173,10.83106998,212.73,212.69,7.67]
[1759175820366,10.83106998,212.72,212.68,4.2289]
[1759175820668,3.30106998,212.71,212.68,11.8989]
[1759175820865,10.83106998,212.7,212.66,7.67]
[1759175821064,3.30106998,212.69,212.66,7.67]
[1759175821266,3.30106998,212.68,212.63,7.67]
[1759175821466,3.30106998,212.69,212.63,7.67]
[1759175821665,3.30106998,212.68,212.62,69.20470815]
[1759175821866,3.30106998,212.72,212.63,7.67]
[1759175822063,7.53,212.7,212.59,4.2306]
[1759175822261,7.53,212.68,212.58,7.67]
[1759175822467,3.30106998,212.67,212.58,11.07360815]
[1759175822669,3.30106998,212.66,212.65,7.67]
[1759175822866,3.40360815,212.75,212.64,4.2296]
[1759175822867,3.30106998,212.67,212.64,4.2296]
[1759175823061,3.30106998,212.66,212.64,4.2296]
[1759175823265,7.53,212.68,212.64,4.2296]
[1759175823473,3.30106998,212.67,212.65,7.67]
[1759175823668,3.30106998,212.66,212.65,7.67]
[1759175823874,3.30106998,212.67,212.64,11.8996]
[1759175824173,3.30106998,212.66,212.65,7.67]
[1759175824371,7.53,212.72,212.66,7.67]
[1759175824572,7.53,212.72,212.61,69.20750815]
[1759175824573,3.30099216,212.71,212.63,7.67]
[1759175824773,7.53,212.72,212.63,7.67]
[1759175824774,3.30099216,212.7,212.63,7.67]
[1759175824970,3.30099216,212.69,212.63,7.67]
[1759175825170,3.30099216,212.71,212.64,3.40360815]
[1759175825370,3.30099216,212.7,212.64,3.40360815]
[1759175825569,440.26839026,212.76,212.64,3.40360815]
[1759175825570,3.30099216,212.75,212.67,3.40360815]
[1759175825769,3.30099216,212.74,212.71,7.67]
[1759175825969,3.30099216,212.75,212.7,3.40360815]
[1759175826271,3.30099216,212.75,212.71,7.67]
[1759175826573,3.30099216,212.75,212.72,4.2279]
[1759175826777,3.30099216,212.75,212.72,11.8979]
[1759175827074,3.30099216,212.75,212.7,3.40360815]
[1759175827275,3.30099216,212.79,212.73,3.40360815]
[1759175827470,3.30099216,212.78,212.73,3.40360815]
[1759175827779,3.30099216,212.79,212.75,4.2273]
[1759175828071,3.30099216,212.78,212.76,7.67]
[1759175828272,3.30099216,212.79,212.73,3.40360815]
[1759175828479,3.30099216,212.82,212.74,7.67]
[1759175828668,3.30099216,212.81,212.74,7.67]
[1759175828872,3.30099216,212.8,212.76,3.40360815]
[1759175829073,3.30099216,212.82,212.76,3.40360815]
[1759175829284,7.53,212.8,212.76,3.40360815]
[1759175829474,3.30099216,212.79,212.76,11.07360815]
[1759175829777,3.30099216,212.82,212.76,7.63070815]
[1759175829968,7.53,212.8,212.75,7.67]
[1759175830173,10.83099216,212.79,212.75,7.67]
[1759175830379,7.53,212.79,212.75,7.67]
[1759175832083,7.53,212.79,212.76,4.2273]
[1759175832277,7.53,212.83,212.75,7.67]
[1759175832478,3.2911843,212.82,212.75,7.67]
[1759175832671,3.2911843,212.82,212.78,4.2267]
[1759175832873,3.2911843,212.82,212.78,7.67]
[1759175833077,3.2911843,212.86,212.77,11.07360815]
[1759175833280,3.2911843,212.85,212.77,11.07360815]
[1759175833485,10.8211843,212.84,212.79,11.8965]
[1759175833783,3.2911843,212.83,212.79,7.67]
[1759175834681,3.2911843,212.83,212.79,11.8965]
[1759175834882,3.2911843,212.83,212.8,7.84]
[1759175835382,10.8811843,212.83,212.8,7.84]
[1759175835682,7.59,212.83,212.8,7.84]
[1759175837078,7.59,212.87,212.8,12.0663]
[1759175837279,3.28799369,212.86,212.8,12.0663]
[1759175838282,3.28799369,212.85,212.8,12.0663]
[1759175838476,7.59,212.84,212.8,12.0663]
[1759175838682,433.75794784,212.89,212.75,7.84]
[1759175838683,7.59,212.82,212.75,7.84]
[1759175838975,7.59,212.82,212.72,65.7701]
[1759175838976,7.59,212.8,212.72,7.84]
[1759175840585,7.59,212.8,212.74,4.2276]
[1759175841083,7.59,212.8,212.72,7.84]
[1759175841981,3.29493312,212.79,212.74,4.2277]
[1759175842286,3.29493312,212.79,212.75,7.84]
[1759175842287,7.59,212.79,212.75,7.84]
[1759175842681,7.59,212.79,212.75,12.0673]
[1759175843082,7.59,212.84,212.73,7.84]
[1759175843283,3.29509142,212.83,212.75,7.84]
[1759175843486,3.29509142,212.83,212.77,7.84]
[1759175844077,3.29509142,212.83,212.81,4.2261]
[1759175844684,3.29509142,212.83,212.81,11.9461]
[1759175845286,3.29509142,212.87,212.81,11.9461]
[1759175845482,7.98,212.85,212.81,11.9461]
[1759175845688,3.29509142,212.84,212.81,11.9461]
[1759175846781,11.27509142,212.84,212.79,4.2266]
[1759175846979,3.29509142,212.83,212.79,11.9466]
[1759175847185,3.29509142,212.85,212.79,11.9466]
[1759175847489,3.29509142,212.85,212.8,4.2263]
[1759175847690,11.27509142,212.85,212.8,11.9463]
[1759175847881,4.225,212.88,212.8,11.9463]
[1759175847882,3.29509142,212.84,212.8,11.9463]
[1759175848082,7.98,212.84,212.8,11.9463]
[1759175848279,3.29509142,212.83,212.8,11.9463]
[1759175849190,3.29509142,212.84,212.8,11.9463]
[1759175849590,3.29509142,212.84,212.81,4.2262]
[1759175849991,7.98,212.83,212.73,73.4873]
[1759175850286,3.29509142,212.82,212.74,7.72]
[1759175850990,3.29509142,212.82,212.79,7.72]
[1759175851190,3.29509142,212.82,212.78,4.2267]
[1759175851191,7.98,212.81,212.78,4.2267]
[1759175851382,7.98,212.81,212.78,11.9467]
[1759175851890,7.98,212.85,212.78,4.2267]
[1759175852090,3.29452498,212.84,212.78,4.2267]
[1759175853395,3.29452498,212.84,212.79,4.2266]
[1759175853696,11.27452498,212.84,212.8,7.72]
[1759175853896,3.29452498,212.83,212.8,7.72]
[1759175854092,3.29452498,212.83,212.81,7.72]
[1759175854596,3.29452498,212.87,212.81,7.72]
[1759175854795,7.98,212.85,212.81,7.72]
[1759175855002,3.29452498,212.84,212.81,7.72]
[1759175855390,11.27452498,212.84,212.8,4.2264]
[1759175855591,3.29452498,212.83,212.8,11.9464]
[1759175856890,3.29452498,212.83,212.81,7.72]
[1759175857090,3.29452498,212.83,212.82,7.72]
[1759175857295,11.27452498,212.88,212.82,7.72]
[1759175857596,3.29452498,212.87,212.81,11.9461]
[1759175857798,3.29452498,212.86,212.82,7.72]
[1759175857994,3.29452498,212.85,212.81,4.2261]
[1759175858194,3.29452498,212.88,212.81,11.9461]
[1759175858391,323.88,212.89,212.76,3.40360815]
[1759175858392,3.29452498,212.87,212.82,4.2259]
[1759175858598,3.29452498,212.86,212.83,7.72]
[1759175858787,3.29452498,212.85,212.83,7.72]
[1759175858993,11.27452498,212.88,212.82,11.9459]
[1759175859300,3.29452498,212.87,212.83,7.72]
[1759175859599,3.29695975,212.93,212.83,7.72]